bitfinex/quotes_ETHUSD_20250814
["timestamp","ask_amount","ask_price","bid_price","bid_amount"]
[1755195172474,0.002,4532.7,4531.5,2.91877479]
[1755195172821,0.95786899,4531.2,4525.8,0.3917]
[1755195173112,0.55,4530.8,4525.8,0.001]
[1755195173427,2.20799293,4529.0,4525.8,0.001]
[1755195173572,0.55,4527.6,4525.8,0.001]
[1755195173771,3.0,4527.4,4525.8,0.001]
[1755195174003,4.221,4527.3,4525.8,0.001]
[1755195174271,0.55,4527.1,4525.8,0.001]
[1755195174494,5.87887082,4527.2,4525.8,0.001]
[1755195174495,2.20939147,4526.2,4525.8,0.001]
[1755195174810,2.20946056,4526.0,4525.8,0.001]
[1755195175034,2.66486056,4526.0,4525.8,0.001]
[1755195175178,0.4554,4525.9,4525.8,0.001]
[1755195175374,0.4554,4525.9,4525.8,1e-08]
[1755195175603,4.4636,4525.9,4525.8,1e-08]
[1755195176808,8.1346,4525.9,4525.8,1e-08]
[1755195177309,4.4636,4525.9,4525.8,1e-08]
[1755195177696,8.1356,4525.9,4525.8,1e-08]
[1755195178077,0.4554,4526.9,4525.8,1e-08]
[1755195178276,2.20842261,4528.2,4525.8,1e-08]
[1755195178277,0.4554,4528.2,4526.5,2.20917765]
[1755195178476,3.677,4528.1,4526.6,0.22091777]
[1755195178686,3.677,4528.1,4526.3,0.3907]
[1755195178890,3.677,4528.1,4526.8,2.20905114]
[1755195179085,5.3,4528.8,4526.3,0.3907]
[1755195179383,3.686,4528.7,4526.5,3.0]
[1755195179583,6.34956412,4528.7,4526.6,0.38493]
[1755195179914,2.20851823,4528.0,4526.7,2.20909313]
[1755195180116,3.685,4527.9,4526.8,2.20904266]
[1755195180413,0.55,4527.8,4527.0,2.20894372]
[1755195180615,3.685,4527.9,4527.0,2.20894372]
[1755195180975,0.55,4527.8,4525.9,0.4586]
[1755195181183,0.55,4527.1,4525.9,0.4586]
[1755195181377,0.55,4527.1,4525.8,1e-08]
[1755195181378,0.55,4526.8,4525.8,1e-08]
[1755195181879,0.55,4526.9,4526.0,2.20945108]
[1755195182719,0.55,4526.9,4525.8,2.20951399]
[1755195183016,0.55,4526.9,4525.8,1e-08]
[1755195183218,0.55,4525.9,4525.8,1e-08]
[1755195183426,4.3394,4525.9,4525.8,1e-08]
[1755195183606,4.7948,4525.9,4525.8,1e-08]
[1755195183917,7.46250529,4525.9,4525.8,1e-08]
[1755195184676,7.00430529,4525.9,4525.8,1e-08]
[1755195185005,4.3434,4525.9,4525.8,1e-08]
[1755195185820,7.00830529,4525.9,4525.8,1e-08]
[1755195186127,10.00830529,4525.9,4525.8,1e-08]
[1755195186338,10.46650529,4525.9,4525.8,1e-08]
[1755195190592,5.20950529,4525.9,4525.8,1e-08]
[1755195190797,9.33590529,4525.9,4525.8,1e-08]
[1755195191111,10.34410529,4525.9,4525.8,1e-08]
[1755195193327,10.35010529,4525.9,4525.8,1e-08]
[1755195195531,9.33090529,4525.9,4525.8,1e-08]
[1755195195919,10.33910529,4525.9,4525.8,1e-08]
[1755195196617,9.88090529,4525.9,4525.8,1e-08]
[1755195196851,10.33910529,4525.9,4525.8,1e-08]
[1755195197541,10.34410529,4525.9,4525.8,1e-08]
[1755195197944,6.67310529,4525.9,4525.8,1e-08]
[1755195198144,10.34110529,4525.9,4525.8,1e-08]
[1755195200146,6.21490529,4525.9,4525.8,1e-08]
[1755195200347,9.42450529,4525.9,4525.8,1e-08]
[1755195200654,5.98390529,4525.9,4525.8,1e-08]
[1755195200824,2.31990529,4525.9,4525.8,1e-08]
[1755195201023,6.53290529,4525.9,4525.8,1e-08]
[1755195201224,9.53290529,4525.9,4525.8,1e-08]
[1755195201660,10.47890529,4525.9,4525.8,1e-08]
[1755195201866,2.75989591,4525.1,4525.0,0.001]
[1755195202071,9.88879591,4525.1,4525.0,0.001]
[1755195202469,9.99919591,4525.1,4525.0,0.001]
[1755195202667,10.47829591,4525.1,4525.0,0.001]
[1755195203184,2.76014012,4524.6,4524.4,0.001]
[1755195203347,5.76018897,4524.5,4524.4,1e-08]
[1755195203680,0.55,4522.1,4520.7,0.088484]
[1755195203891,0.55,4520.9,4520.0,3.05994211]
[1755195204036,0.20245523,4521.8,4520.1,0.30609421]
[1755195204277,0.55,4521.6,4520.2,0.3907]
[1755195204478,0.55,4521.8,4520.3,0.4569]
[1755195204672,0.55,4521.6,4520.3,0.4569]
[1755195204902,0.55,4521.6,4520.4,2.21214899]
[1755195205108,3.0,4521.9,4520.3,0.4569]
[1755195205434,0.55,4521.9,4520.4,0.8476]
[1755195205633,2.21171792,4521.4,4520.5,0.38476]
[1755195205936,5.89875665,4521.3,4520.5,0.38476]
[1755195206133,3.687,4521.3,4520.5,0.38476]
[1755195206273,3.687,4521.3,4520.4,3.05977801]
[1755195206274,0.55,4521.2,4520.4,3.05977801]
[1755195206703,3.686,4521.1,4520.5,2.21212858]
[1755195206883,3.685,4521.0,4520.5,2.21214467]
[1755195207073,3.685,4521.0,4520.6,0.8476]
[1755195207314,3.685,4521.0,4519.5,3.0]
[1755195207315,4.0169,4520.9,4518.3,0.663981]
[1755195207614,0.55,4519.1,4517.4,0.4569]
[1755195207834,0.55,4518.9,4517.4,0.4569]
[1755195208005,0.55,4517.4,4516.7,0.4569]
[1755195208173,3.953,4517.3,4516.8,0.3907]
[1755195208401,5.304,4519.0,4515.2,0.02214741]
[1755195208402,3.953,4517.2,4516.9,0.4569]
[1755195208611,3.952,4517.1,4517.0,0.4569]
[1755195208797,6.71580974,4517.1,4517.0,0.4569]
[1755195209113,0.55,4517.0,4516.2,0.4569]
[1755195209314,2.21396254,4516.8,4516.2,0.4569]
[1755195209516,0.16756962,4519.3,4516.2,0.4569]
[1755195209821,3.96,4519.2,4516.4,5.21415286]
[1755195210023,2.21309003,4518.6,4516.6,2.21405481]
[1755195210180,3.962,4518.5,4516.7,0.8476]
[1755195210382,2.76324613,4518.3,4516.8,0.8476]
[1755195210623,0.55,4518.1,4515.4,2.2146072]
[1755195210775,2.21365856,4517.5,4516.6,0.4569]
[1755195210979,3.967,4517.4,4516.6,0.4569]
[1755195211177,3.967,4517.3,4516.6,0.4569]
[1755195211410,3.965,4517.2,4516.6,0.4569]
[1755195211617,3.968,4517.1,4516.6,0.4569]
[1755195211914,3.968,4517.0,4516.7,0.4569]
[1755195212121,3.966,4517.3,4516.8,2.67082787]
[1755195212282,3.966,4517.2,4516.7,0.3907]
[1755195212478,0.55,4518.4,4516.9,0.4569]
[1755195212479,3.965,4517.3,4516.9,0.4569]
[1755195212814,3.965,4517.3,4516.3,0.4569]
[1755195213018,3.965,4517.3,4515.6,0.8476]
[1755195213218,3.965,4517.3,4515.7,2.21449609]
[1755195213219,0.55,4517.2,4515.7,2.21449609]
[1755195213437,2.21425221,4516.2,4515.6,1.23246]
[1755195213642,3.962,4516.1,4515.6,0.84176]
[1755195213913,0.4791,4517.6,4515.4,0.001]
[1755195213914,3.962,4516.5,4516.1,2.21429646]
[1755195214120,0.1104,4516.3,4516.2,0.8476]
[1755195214283,2.21377166,4517.2,4516.4,0.1104]
[1755195214284,3.965,4516.7,4516.4,0.1104]
[1755195214485,3.964,4517.1,4515.5,5.21459417]
[1755195214685,3.964,4517.1,4515.7,2.21449609]
[1755195214883,3.964,4517.1,4517.0,0.1104]
[1755195215080,3.964,4517.1,4515.9,2.21439791]
[1755195215284,0.1104,4516.5,4515.9,0.1104]
[1755195215553,0.1104,4516.5,4515.4,0.001]
[1755195215554,0.1104,4516.9,4516.2,0.1104]
[1755195215858,3.965,4516.4,4516.2,0.1104]
[1755195216061,6.17920188,4516.4,4516.2,0.1104]
[1755195216336,3.965,4516.4,4515.4,0.001]
[1755195216502,2.21439589,4516.0,4515.5,0.1104]
[1755195216703,0.1104,4516.0,4515.5,0.1104]
[1755195216929,0.4669,4515.9,4515.4,0.001]
[1755195217138,0.1104,4515.5,4515.4,0.001]
[1755195217304,3.965,4515.5,4515.4,0.001]
[1755195217504,7.67559417,4515.5,4515.4,0.001]
[1755195217930,5.309,4515.8,4515.4,0.001]
[1755195218211,3.965,4515.8,4515.4,0.001]
[1755195218620,1.0169,4515.7,4515.4,0.001]
[1755195218818,2.76459417,4515.5,4515.4,0.001]
[1755195219020,1.0169,4515.5,4515.4,0.001]
[1755195219318,4.9829,4515.5,4515.4,0.001]
[1755195219840,0.4791,4516.6,4515.4,0.001]
[1755195220043,3.969,4516.5,4515.7,0.001]
[1755195220207,5.7759,4517.5,4515.7,0.001]
[1755195220547,2.21381044,4517.1,4515.9,2.21439072]
[1755195220760,0.4669,4517.0,4515.7,0.001]
[1755195221055,3.972,4516.9,4515.7,0.001]
[1755195221222,2.21403152,4516.7,4515.7,0.001]
[1755195221408,2.76444705,4515.8,4515.7,0.001]
[1755195221604,7.67844705,4515.8,4515.7,0.001]
[1755195221818,7.19934705,4515.8,4515.7,0.001]
[1755195222030,10.67844705,4515.8,4515.7,0.001]
[1755195222232,4.9849,4515.8,4515.7,0.001]
[1755195222430,4.518,4515.8,4515.7,0.001]
[1755195222719,3.979,4515.8,4515.7,0.001]
[1755195223076,0.4669,4516.4,4515.7,0.001]
[1755195223250,0.55,4516.2,4515.7,0.001]
[1755195223420,2.69316472,4516.6,4515.7,0.001]
[1755195223421,3.976,4516.1,4515.7,0.001]
[1755195223619,0.4669,4517.1,4516.0,2.21434292]
[1755195223829,3.975,4517.0,4516.4,2.21411013]
[1755195224029,0.4669,4517.6,4516.0,0.4569]
[1755195224351,0.4669,4517.6,4515.7,0.001]
[1755195224554,0.4669,4517.6,4515.9,2.21439801]
[1755195224555,3.974,4517.4,4515.9,2.21439801]
[1755195224771,2.2132696,4518.3,4515.7,0.3917]
[1755195224772,0.4791,4519.1,4515.7,0.001]
[1755195224951,0.4669,4518.9,4516.1,3.0]
[1755195225119,0.4669,4518.9,4517.9,2.21341084]
[1755195225314,0.4669,4518.9,4516.4,0.3907]
[1755195225520,3.97,4518.8,4516.4,0.8476]
[1755195225785,3.97,4518.8,4516.5,3.06168445]
[1755195226067,0.55,4517.6,4515.9,0.4569]
[1755195226453,3.973,4517.5,4516.0,0.41284348]
[1755195226829,3.972,4517.4,4517.3,2.21367092]
[1755195226984,0.946,4519.5,4517.3,0.8476]
[1755195227143,0.946,4519.5,4517.4,0.4569]
[1755195227344,4.169994,4519.0,4518.5,0.1104]
[1755195227538,3.971,4519.0,4518.5,0.1104]
[1755195227976,0.1104,4519.6,4519.0,2.21287895]
[1755195228308,0.002,4519.8,4519.1,0.4569]
[1755195228481,0.002,4519.8,4519.7,2.21253623]
[1755195229089,0.002,4519.8,4519.7,2.77983623]
[1755195229938,0.002,4519.8,4519.7,3.17053623]
[1755195230878,0.1104,4521.6,4519.7,3.17053623]
[1755195231064,4.1608947,4521.5,4519.8,0.47902487]
[1755195231278,0.19989698,4521.4,4521.1,0.1104]
[1755195231478,0.19989698,4521.3,4521.1,0.1104]
[1755195231639,3.958,4521.5,4521.1,0.1104]
[1755195231844,1.10882616,4521.4,4521.1,0.1104]
[1755195232089,0.1104,4521.2,4520.5,0.1104]
[1755195232245,2.2120915,4520.7,4520.5,0.1104]
[1755195232443,6.80974665,4520.6,4519.7,2.21253546]
[1755195232700,2.21224255,4520.3,4520.2,0.1104]
[1755195232991,0.64288992,4520.3,4520.0,0.1104]
[1755195233289,4.15183284,4520.2,4520.0,0.1104]
[1755195233446,0.20083284,4520.1,4519.0,2.21287109]
[1755195233791,0.20083284,4520.0,4519.2,2.21276702]
[1755195233955,0.20083284,4519.9,4519.6,0.1104]
[1755195234154,0.20083284,4519.8,4519.6,0.1104]
[1755195234343,0.20083284,4519.7,4519.6,0.1104]
[1755195234547,3.946,4519.8,4519.6,0.1104]
[1755195234957,0.5528,4520.5,4519.6,0.1104]
[1755195235282,4.14687933,4520.4,4519.6,0.1104]
[1755195235582,4.14287933,4520.3,4519.6,2.21254344]
[1755195235786,4.14187933,4520.2,4518.9,2.21292792]
[1755195235981,0.20087933,4520.1,4519.8,2.2124818]
[1755195236144,3.941,4520.2,4519.0,0.78825279]
[1755195236145,0.20087933,4520.0,4519.6,2.21253787]
[1755195236344,0.20087933,4519.9,4519.0,0.78825279]
[1755195236557,0.20087933,4519.8,4519.0,0.78825279]
[1755195236772,3.941,4520.2,4519.8,0.1104]
[1755195236972,0.20099418,4520.1,4519.6,2.21258358]
[1755195237180,0.20099418,4520.0,4519.2,2.21278102]
[1755195237385,2.21234378,4520.1,4517.4,2.21365194]
[1755195237386,0.64339418,4519.9,4517.7,0.4799]
[1755195237588,0.64339418,4519.9,4517.8,2.4828132]
[1755195237589,2.21269437,4519.4,4517.8,2.4828132]
[1755195237887,6.3517281,4519.3,4517.8,2.4828132]
[1755195238048,0.20101085,4519.2,4517.8,0.26934647]
[1755195238248,0.20101085,4519.1,4519.0,0.1104]
[1755195238583,3.938,4519.3,4519.0,0.1104]
[1755195238774,3.938,4519.3,4517.7,0.4799]
[1755195238775,2.21282998,4519.1,4518.2,2.21326357]
[1755195238970,2.41386008,4519.0,4518.7,0.1104]
[1755195239170,0.55,4519.5,4518.7,0.1104]
[1755195239394,2.21273206,4519.3,4518.7,0.1104]
[1755195239600,2.41375007,4519.2,4518.7,0.34275124]
[1755195239809,2.21283307,4519.1,4518.7,0.1104]
[1755195239989,2.65523307,4519.1,4518.7,0.1104]
[1755195240193,0.1104,4519.6,4518.7,0.1104]
[1755195240396,2.41355253,4519.5,4519.0,0.1104]
[1755195240711,6.33959696,4519.4,4519.0,0.1104]
[1755195240881,0.20090586,4519.3,4519.0,0.1104]
[1755195241081,0.20090586,4519.2,4519.0,0.1104]
[1755195241295,0.20090586,4519.1,4519.0,0.1104]
[1755195241617,0.64330586,4519.1,4519.0,0.1104]
[1755195241817,2.21298599,4518.8,4518.4,0.1104]
[1755195242110,4.56630586,4518.7,4518.4,0.1104]
[1755195242313,0.20090586,4518.6,4518.4,0.1104]
[1755195242520,0.5766,4519.1,4518.4,0.1104]
[1755195242521,0.20090586,4518.5,4518.4,0.1104]
[1755195242705,3.92,4519.4,4519.3,2.21273206]
[1755195242912,0.20093775,4519.4,4519.3,2.32313206]
[1755195243121,0.20093775,4519.4,4519.3,0.1104]
[1755195243578,4.11993775,4519.4,4519.3,0.1104]
[1755195244186,0.20093775,4519.4,4519.3,2.32313206]
[1755195244397,0.002,4519.8,4519.3,2.32313206]
[1755195244398,0.002,4519.8,4519.4,2.21263415]
[1755195244723,0.002,4519.8,4519.4,2.21267178]
[1755195244724,0.2009429,4519.7,4519.4,2.21267178]
[1755195244925,0.002,4519.8,4519.7,0.1104]
[1755195245091,0.20294549,4519.8,4519.7,0.1104]
[1755195245291,0.20294549,4519.8,4518.9,2.21288785]
[1755195245292,0.64534549,4519.8,4518.9,2.21288785]
[1755195245651,0.20094549,4519.7,4519.5,0.1104]
[1755195245927,4.11194549,4519.6,4519.5,0.1104]
[1755195246099,0.20094549,4519.6,4519.5,0.1104]
[1755195246298,0.20094549,4519.6,4519.5,2.21263414]
[1755195246507,3.908,4519.7,4519.5,0.1104]
[1755195246724,3.908,4519.7,4519.5,2.32302912]
[1755195246938,3.908,4519.7,4519.6,2.21258518]
[1755195247143,0.002,4519.8,4519.7,2.21253623]
[1755195247437,0.002,4519.8,4519.6,0.1104]
[1755195248130,0.4444,4519.8,4519.6,0.1104]
[1755195248335,0.002,4519.8,4519.6,0.1104]
[1755195248552,0.002,4519.8,4519.7,0.1104]
[1755195248720,4.54763191,4519.8,4519.7,0.1104]
[1755195249100,4.10523191,4519.8,4519.7,0.1104]
[1755195249566,0.002,4521.1,4519.7,0.34270314]
[1755195249728,0.002,4521.1,4521.0,2.21190002]
[1755195250233,0.002,4521.1,4521.0,2.32230002]
[1755195251447,0.002,4521.1,4521.0,0.1104]
[1755195252730,0.002,4521.1,4519.0,0.4799]
[1755195252731,0.4682,4521.1,4519.0,0.4799]
[1755195252932,0.55,4520.5,4518.7,2.21297819]
[1755195253259,2.21194702,4521.0,4520.0,0.1104]
[1755195253458,3.91,4520.9,4519.9,2.2124309]
[1755195253662,0.1104,4521.0,4520.3,0.1104]
[1755195253953,3.917,4521.0,4520.8,0.1104]
[1755195254768,1e-08,4521.6,4521.0,2.21190002]
[1755195255056,1e-08,4521.6,4521.5,2.32205542]
[1755195255260,1e-08,4521.6,4521.5,6.96815048]
[1755195255420,1e-08,4521.6,4521.5,6.94603393]
[1755195256324,1e-08,4521.6,4521.5,5.80195542]
[1755195256934,1e-08,4521.6,4521.5,0.1104]
[1755195257131,1e-08,4521.6,4518.5,2.76307601]
[1755195257132,0.90860001,4521.6,4519.9,2.21238943]
[1755195257332,0.55,4521.5,4519.0,0.4799]
[1755195257660,0.1104,4521.3,4520.6,0.1104]
[1755195257963,0.4424,4521.5,4519.2,21.08426189]
[1755195257964,3.956,4521.4,4520.9,0.1104]
[1755195258256,6.16772966,4521.4,4520.9,0.1104]
[1755195258461,0.4424,4521.3,4520.9,0.1104]
[1755195258826,0.4424,4521.2,4520.9,0.1104]
[1755195260059,3.956,4521.4,4520.9,0.1104]
[1755195260232,4.3984,4521.4,4520.9,0.1104]
[1755195260434,4.3984,4521.4,4518.7,0.22129782]
[1755195260435,2.21223784,4520.4,4518.7,0.22129782]
[1755195260629,4.3874,4520.3,4518.2,2.21326512]
[1755195260828,3.944,4520.2,4519.3,2.21272985]
[1755195261025,3.944,4520.2,4518.5,0.4799]
[1755195261260,3.944,4520.2,4519.5,2.21260288]
[1755195261456,3.944,4520.2,4519.5,2.21263305]
[1755195261662,3.944,4520.2,4519.6,2.21256405]
[1755195261874,3.944,4520.2,4518.5,2.2131212]
[1755195262159,3.944,4520.2,4519.4,2.21263606]
[1755195262476,3.936,4520.5,4518.9,0.4988]
[1755195262626,3.936,4520.5,4520.4,2.21219361]
[1755195262826,0.4608,4521.2,4520.4,2.21219361]
[1755195262827,3.936,4521.2,4520.4,2.21219361]
[1755195263182,3.936,4521.2,4519.8,2.21248727]
[1755195263379,3.936,4521.2,4520.7,2.21202112]
[1755195263663,3.936,4521.2,4520.5,2.21210449]
[1755195263970,3.936,4521.2,4520.5,2.21211804]
[1755195264265,1e-08,4521.6,4521.5,2.21165542]
[1755195264529,1e-08,4521.6,4521.5,0.22116554]
[1755195264684,1e-08,4521.6,4520.6,2.60279538]
[1755195264892,1e-08,4521.6,4521.5,2.21165542]
[1755195266144,1e-08,4521.6,4521.5,2.71045542]
[1755195266448,1e-08,4521.6,4521.5,2.21165542]
[1755195266860,1e-08,4521.6,4521.5,2.6539946]
[1755195267836,1e-08,4521.6,4521.5,0.44233918]
[1755195268037,1e-08,4521.6,4520.8,0.4988]
[1755195268262,1e-08,4521.6,4520.7,2.2120468]
[1755195268453,1e-08,4521.6,4521.4,2.21166146]
[1755195268664,1e-08,4521.6,4521.4,2.2116843]
[1755195268868,1e-08,4521.6,4520.4,3.0]
[1755195268869,1e-08,4521.6,4521.5,2.21165542]
[1755195269070,0.43810001,4521.6,4520.8,2.21199091]
[1755195269257,0.89890001,4521.6,4520.8,2.21199091]
[1755195269456,0.89890001,4521.6,4520.9,0.22119909]
[1755195269659,0.89890001,4521.6,4519.8,0.31019873]
[1755195269863,0.89890001,4521.6,4520.7,2.21200985]
[1755195270066,3.914,4521.5,4520.6,2.21209573]
[1755195270381,3.914,4521.5,4520.5,2.21214303]
[1755195270382,3.913,4521.5,4519.8,0.31019873]
[1755195270584,3.913,4521.5,4521.2,0.1104]
[1755195270946,0.8989,4521.4,4521.2,0.1104]
[1755195271265,0.8989,4521.4,4520.4,2.21215523]
[1755195271470,0.8989,4521.4,4520.9,0.1104]
[1755195271648,0.4381,4521.3,4520.9,0.1104]
[1755195272547,2.2116272,4521.6,4519.8,2.21248727]
[1755195272548,1e-08,4521.6,4520.2,3.0]
[1755195272780,3.903,4521.5,4520.3,0.3907]
[1755195272945,3.903,4521.5,4521.4,2.21170433]
[1755195273146,3.903,4521.5,4521.4,2.32210433]
[1755195274945,3.903,4521.5,4521.4,0.1104]
[1755195275149,4.8019,4521.5,4521.4,0.1104]
[1755195275500,4.3411,4521.5,4521.4,0.1104]
[1755195276373,4.3411,4521.5,4519.9,0.001]
[1755195276374,4.8019,4521.5,4519.9,0.001]
[1755195276560,4.8019,4521.5,4521.1,0.1104]
[1755195276751,0.4381,4521.4,4521.1,0.1104]
[1755195276953,3.903,4521.5,4520.0,2.60308938]
[1755195277290,3.88700001,4521.6,4521.3,2.32214754]
[1755195277451,3.88700001,4521.6,4521.3,0.1104]
[1755195278358,3.88700001,4521.6,4521.5,2.21165542]
[1755195278667,3.88700001,4521.6,4521.3,2.32211246]
[1755195278985,3.88700001,4521.6,4521.4,2.2116918]
[1755195279352,3.88700001,4521.6,4521.3,0.1104]
[1755195279590,3.88700001,4521.6,4521.4,2.21169127]
[1755195279789,3.87700001,4521.6,4521.4,2.21169127]
[1755195279986,3.87700001,4521.6,4521.3,0.1104]
[1755195280596,3.87700001,4521.6,4521.4,2.21169796]
[1755195281092,3.87700001,4521.6,4521.5,2.21165542]
[1755195281480,3.87700001,4521.6,4521.3,2.3221064]
[1755195281677,3.87700001,4521.6,4521.4,2.21167301]
[1755195282077,3.87700001,4521.6,4521.3,2.32214581]
[1755195282485,3.87700001,4521.6,4521.4,2.21170433]
[1755195282997,3.87700001,4521.6,4521.5,2.21165542]
[1755195283196,3.87700001,4521.6,4521.3,0.1104]
[1755195283409,0.8989,4521.5,4521.3,0.1104]
[1755195283701,0.4381,4521.5,4521.3,0.1104]
[1755195283908,3.87700001,4521.6,4521.3,0.1104]
[1755195284537,3.87700001,4521.6,4521.4,2.21170222]
[1755195284811,3.87700001,4521.6,4521.5,2.21165542]
[1755195284991,3.87700001,4521.6,4521.4,2.21170207]
[1755195285191,0.4381,4521.5,4521.3,0.1104]
[1755195285500,0.8989,4521.5,4521.1,0.1104]
[1755195285703,0.4381,4521.4,4521.1,0.1104]
[1755195285908,3.87700001,4521.6,4521.1,0.1104]
[1755195285909,1e-08,4521.6,4521.1,0.1104]
[1755195286207,3.853,4521.3,4521.1,2.21184791]
[1755195286670,3.853,4521.3,4521.2,2.32220217]
[1755195287003,3.853,4521.3,4521.2,0.1104]
[1755195287768,3.853,4521.3,4521.2,2.32220217]
[1755195288065,3.845,4521.3,4521.2,0.1104]
[1755195288383,3.845,4521.3,4521.2,2.32220217]
[1755195292226,3.845,4521.3,4521.2,0.1104]
[1755195292387,4.3105,4521.3,4521.2,0.1104]
[1755195292586,3.845,4521.3,4521.2,0.1104]
[1755195292786,3.845,4521.3,4521.2,2.32220217]
[1755195294025,4.3105,4521.3,4521.2,0.1104]
[1755195294210,4.7938,4521.3,4521.2,0.1104]
[1755195295406,1e-08,4521.6,4521.4,2.21169944]
[1755195295606,3.817,4521.5,4521.2,2.21180217]
[1755195295796,3.817,4521.5,4520.6,2.2120953]
[1755195295998,3.817,4521.5,4521.4,0.1104]
[1755195296429,4.2825,4521.5,4521.4,0.1104]
[1755195297145,4.7658,4521.5,4521.4,0.1104]
[1755195297299,4.7658,4521.5,4521.1,0.1104]
[1755195297629,0.9488,4521.4,4521.1,0.1104]
[1755195297789,1e-08,4521.6,4521.1,0.1104]
[1755195297989,3.809,4521.5,4521.1,0.1104]
[1755195298189,0.4655,4521.4,4521.1,0.1104]
[1755195298428,0.4655,4521.4,4521.0,2.21185847]
[1755195298601,0.4655,4521.4,4521.1,0.1104]
[1755195298947,3.809,4521.5,4521.3,0.1104]
[1755195299497,3.809,4521.5,4521.3,2.32212566]
[1755195299698,3.809,4521.5,4521.3,0.1104]
[1755195300032,3.81400001,4521.6,4521.5,2.21165542]
[1755195300196,1e-08,4521.6,4521.5,2.66503657]
[1755195300395,1e-08,4521.6,4521.5,3.55785312]
[1755195300592,0.002,4522.6,4522.5,2.21116639]
[1755195300809,0.002,4522.6,4522.5,2.69116639]
[1755195301005,0.002,4522.6,4522.5,2.21116639]
[1755195301338,0.002,4522.6,4521.5,0.45338115]
[1755195301637,0.002,4522.6,4522.5,2.21116639]
[1755195301933,0.002,4522.6,4522.5,24.15548725]
[1755195302135,0.002,4522.6,4522.5,2.21116639]
[1755195302319,1e-08,4522.6,4522.5,27.15548725]
[1755195302519,0.002,4523.0,4522.5,27.15548725]
[1755195302520,1e-08,4523.0,4522.9,2.21097083]
[1755195302720,3.81,4525.2,4522.9,3.08165828]
[1755195303035,3.81,4525.1,4524.5,2.21014294]
[1755195303238,0.4655,4525.0,4523.3,3.0]
[1755195303437,0.9488,4525.0,4523.2,2.21078421]
[1755195303597,2.21033383,4524.3,4522.6,3.0]
[1755195303935,2.69367918,4524.2,4522.6,3.0]
[1755195304109,2.69367918,4524.2,4522.5,2.74651857]
[1755195304110,3.1591537,4524.2,4522.5,0.48]
[1755195304306,0.9488,4524.1,4522.6,2.21107038]
[1755195304532,2.21077146,4523.4,4522.6,0.22110704]
[1755195304699,4.7578,4523.3,4522.6,0.22110704]
[1755195304896,4.7578,4523.2,4522.4,2.21121464]
[1755195305129,2.21092022,4523.1,4521.6,0.34533812]
[1755195305444,0.4655,4523.1,4521.8,2.21150869]
[1755195305597,0.4833,4523.2,4522.6,2.2110996]
[1755195305798,3.806,4523.3,4522.0,2.21141088]
[1755195306005,3.804,4523.2,4522.8,2.21101381]
[1755195306407,0.4655,4523.1,4521.5,3.05419231]
[1755195306602,0.9488,4523.1,4522.4,2.21121333]
[1755195306802,0.9488,4523.1,4521.1,0.3907]
[1755195307051,3.804,4523.2,4521.8,2.21149204]
[1755195307052,0.4655,4523.0,4521.8,2.21149204]
[1755195307240,2.21116528,4522.6,4521.8,2.21149253]
[1755195307425,2.69446528,4522.6,4521.8,2.21149253]
[1755195307626,0.4655,4522.5,4521.8,2.21150099]
[1755195307858,3.8,4522.4,4520.8,21.12854229]
[1755195308070,0.4833,4522.6,4522.2,2.21130958]
[1755195308369,3.8,4522.5,4521.4,0.48]
[1755195308516,3.8,4522.5,4522.3,2.21122368]
[1755195308717,3.8,4522.5,4522.4,2.21121528]
[1755195309323,3.794,4522.9,4522.4,0.22112153]
[1755195309516,3.794,4523.0,4521.6,3.48]
[1755195309851,0.002,4523.6,4521.7,2.2115576]
[1755195310063,0.002,4523.6,4523.5,2.21067757]
[1755195310650,0.002,4523.6,4523.5,2.32107757]
[1755195311318,0.002,4523.6,4523.5,2.77426028]
[1755195311857,0.002,4523.6,4523.5,3.25426028]
[1755195312357,1e-08,4523.6,4523.5,6.64496028]
[1755195312517,0.4655,4525.6,4523.6,3.0]
[1755195312720,3.797,4525.8,4525.3,2.20975952]
[1755195313040,3.797,4525.8,4525.7,0.1104]
[1755195313568,4.2625,4525.8,4525.7,0.1104]
[1755195313731,4.7458,4525.8,4524.8,2.21000516]
[1755195314066,0.4655,4525.7,4525.4,0.1104]
[1755195314265,2.20965175,4525.6,4525.4,0.1104]
[1755195314467,0.9488,4525.5,4525.4,0.1104]
[1755195314764,3.79,4525.6,4525.4,0.1104]
[1755195314978,3.79,4525.6,4524.0,2.21041572]
[1755195314979,0.4655,4525.5,4524.0,2.21041572]
[1755195315269,0.55,4522.7,4519.7,2.21352303]
[1755195315473,3.55,4521.8,4521.6,0.1104]
[1755195315643,2.21214467,4520.5,4519.7,0.001]
[1755195315843,10.6378,4520.5,4519.7,0.001]
[1755195316044,12.84994467,4520.5,4519.7,0.001]
[1755195316241,12.84994467,4520.5,4517.4,0.001]
[1755195316242,5.76258518,4519.6,4517.4,0.001]
[1755195316459,10.68278518,4519.6,4518.5,0.1104]
[1755195318770,10.68278518,4519.6,4519.5,1e-08]
[1755195319476,0.55,4517.9,4513.0,0.3957]
[1755195319634,0.55,4516.8,4513.4,0.48]
[1755195319833,0.55,4516.6,4513.4,0.48]
[1755195320070,2.21420189,4516.3,4513.4,0.48]
[1755195320243,0.55,4515.4,4513.4,0.48]
[1755195320448,3.888,4515.3,4513.5,0.74925946]
[1755195320643,3.888,4515.2,4513.6,0.48]
[1755195320880,0.55,4515.1,4512.8,0.4017]
[1755195321084,3.23033333,4515.1,4514.0,2.2153241]
[1755195321246,0.4655,4516.6,4514.1,1.09723241]